Cogmind - Beta 17 @@@ ROGUE MODE // 2026.06.30 @ 17:56:41 Player: Lolterzard Result: Destroyed by P-60 Hacker with Shock Rifle Performance ------------- Evolutions (4) 2000 Regions Visited (8) 1600 Robots Destroyed (187) 935 Value Destroyed (5346) 5346 Prototype IDs (9) 180 Alien Tech Used (0) 0 Bonus (-116) -116 TOTAL SCORE: 9945 Bonus ------- Friendly Fire -116 Cogmind --------- Core Integrity 0/850 Matter 217/500 Energy 99/100 System Corruption 2% Temperature Cool (0) Movement Core (1500) Ox29 Location -6/Factory Parts ------- > --- POWER (2) -------- (None) > --- PROPULSION (5) --- (None) > --- UTILITY (6) ------ Huge Storage Unit High-capacity Matter Pod > --- WEAPON (2) ------- Great Maul > --- INVENTORY (25) --- Advanced Beam Rifle Peak State ------------ > --- POWER ------------ Hybrid Deuterium Engine > --- PROPULSION ------- Gravmag System Improved Gravmag System Improved Gravmag System Improved Gravmag System > --- UTILITY ---------- Improved Heat Sink Huge Storage Unit Improved Utility Shielding Layered Medium Armor Plating Improved Shield Generator High-powered Tractor Beam > --- WEAPON ----------- Flak Cannon Mini Assault Cannon > --- INVENTORY -------- Armored Treads Medium Treads High-capacity Matter Pod Seismic Detector Core Shielding Improved Utility Shielding Light Armor Plating Hardened Light Armor Plating Improved Light Armor Plating Improved Shield Generator Force Field Advanced Beam Rifle Precision Assault Rifle Heavy Assault Cannon Flak Cannon Flak Cannon Advanced Assault Cannon Advanced Assault Cannon Mini Grenade Launcher Great Maul [Rating: 56] Favorites ----------- Power Heavy Ion Engine Engine Heavy Ion Engine Propulsion Light Treads Treads Light Treads Leg Carbon-fiber Leg Wheel Wheel Hover Unit Gravmag System Utility Huge Storage Unit Device Improved Heat Sink Storage Huge Storage Unit Protection Improved Light Armor Plating Weapon Improved Assault Rifle Energy Gun Medium Laser Energy Cannon Particle Cannon Ballistic Gun Improved Assault Rifle Ballistic Cannon Mini Assault Cannon Launcher Mini Grenade Launcher Impact Weapon Great Maul Build | -11 -10 -9 -8 -8 -7 -7 -7 -6 ------- Run | Yrd Mat Mat Mat Sto Fac Low Low Fac Slots Evolved 8 | . . 2 2 . 2 . . 2 Power 1 | . . . . . . . . 1 Propulsion 3 | . . 2 1 . . . . . Utility 4 | . . . 1 . 2 . . 1 Weapon . | . . . . . . . . . Parts Attached 125 | 7 4 17 17 18 35 3 . 24 Power 11 | 1 . 3 1 2 2 . . 2 Engine 11 | 1 . 3 1 2 2 . . 2 Core . | . . . . . . . . . Reactor . | . . . . . . . . . Propulsion 51 | 2 2 7 5 10 15 3 . 7 Treads 22 | 2 . 6 3 9 1 . . 1 Leg 1 | . . . . . . . . 1 Wheel 10 | . 2 1 . . 2 3 . 2 Hover 18 | . . . 2 1 12 . . 3 Flight . | . . . . . . . . . Utility 30 | 2 2 . 3 2 12 . . 9 Device 12 | 1 1 . 1 . 6 . . 3 Storage 3 | 1 1 . . . . . . 1 Processor . | . . . . . . . . . Hackware . | . . . . . . . . . Protection 15 | . . . 2 2 6 . . 5 Artifact . | . . . . . . . . . Weapon 33 | 2 . 7 8 4 6 . . 6 Energy Gun 5 | 1 . 1 2 . 1 . . . Energy Cannon 6 | . . 5 1 . . . . . Ballistic Gun 10 | 1 . . 3 4 1 . . 1 Ballistic Cannon 7 | . . . . . 2 . . 5 Launcher 4 | . . 1 2 . 1 . . . Special Weapon . | . . . . . . . . . Impact Weapon 1 | . . . . . 1 . . . Slashing Weapon . | . . . . . . . . . Piercing Weapon . | . . . . . . . . . Special Melee Weapon . | . . . . . . . . . Unidentified Prototypes 9 | . . 1 2 3 3 . . . Parts Lost 87 | . 2 9 9 5 24 2 1 35 Power 7 | . . 1 1 . 2 . . 3 Propulsion 31 | . 1 1 5 2 11 1 1 9 Utility 24 | . 1 . 1 3 6 . . 13 Weapon 25 | . . 7 2 . 5 1 . 10 Highest Loss Streak 11 | . 2 6 4 2 5 2 1 11 To Critical Strikes . | . . . . . . . . . Average Backups 16 | 1 3 9 21 23 17 20 20 10 Power 1 | . 1 1 2 1 1 1 1 . Propulsion . | . . . . . . 2 3 1 Utility 7 | . . 2 12 13 9 7 7 3 Weapon 5 | . 1 4 5 7 6 9 9 5 Tool/Special . | . . . . . . . . . Unused Backups 7 | . . . 4 3 . . . . Power . | . . . . . . . . . Propulsion . | . . . . . . . . . Utility 6 | . . . 3 3 . . . . Weapon 1 | . . . 1 . . . . . Tool/Special . | . . . . . . . . . Average Slot Usage (%) 84 | . 93 88 88 96 85 92 85 53 Engine 8 | . 14 10 8 8 6 7 7 4 Treads 17 | . 8 31 30 42 1 1 . . Wheel 5 | . 13 3 . . 2 27 24 5 Hover 7 | . . . 4 . 25 1 . 3 Device 9 | . 13 11 10 7 7 15 15 8 Storage 9 | . 14 11 9 8 7 7 7 9 Protection 9 | . . . 7 10 19 15 15 8 Energy Gun 1 | . 14 . . . 1 . . . Energy Cannon 3 | . . 20 5 . . . . . Ballistic Gun 6 | . 14 . 9 15 6 . . . Ballistic Cannon 2 | . . . . . 2 7 7 8 Launcher 1 | . . . 1 1 . 7 7 1 Peak Build Rating 56 | 7 8 17 26 28 50 39 33 56 Average Rating 24 | 5 7 13 22 23 38 34 32 26 On Entrance 19 | . 7 8 17 22 25 34 33 32 Avg Prop Armor Cover (%) 7 | 26 5 6 5 6 8 12 . 7 Naked Turns . | . . . . . . . . . Heaviest Build 121 | 12 87 97 106 101 108 105 100 121 Greatest Support 100 | 40 40 80 100 100 100 50 40 48 Greatest Overweight (x) 36 | 3 28 9 6 1 34 4 3 36 Average Overweight (x) 2 | . 5 2 1 . 2 2 2 5 Largest Inventory Capacity 25 | 8 25 25 25 25 25 25 25 25 Average Capacity 24 | 7 24 25 25 24 25 25 25 25 Most Carried 25 | 2 6 13 25 25 25 22 21 25 Average Carried 16 | 1 3 9 22 24 18 21 21 11 Final Capacity 25 | 8 25 25 25 25 25 25 25 25 Final Carried 25 | 2 6 12 25 25 23 21 21 1 Class Distribution -------------------- 65% | Mutant 34% | Scavenger-Mutant Dominant Class ---------------- Mutant | -10/Materials Scavenger-Mutant | -9/Materials Mutant | -8/Materials Scavenger-Mutant | -8/Storage Mutant | -7/Factory Scavenger-Mutant | -7/Lower Caves Mutant | -7/Lower Caves Mutant | -6/Factory Resources | -11 -10 -9 -8 -8 -7 -7 -7 -6 ----------- Run | Yrd Mat Mat Mat Sto Fac Low Low Fac Matter Collected 4478 | 290 102 428 551 735 852 283 91 1146 Remotely 1506 | . . . . . 280 283 91 852 Salvage Created 6322 | 161 513 1258 1155 991 1159 72 63 950 Parts 359 | 10 35 63 66 58 83 4 5 35 Haulers Intercepted 12 | . 1 3 2 4 2 . . . Recyclers Shooed 6 | . 2 . . . 2 . . 2 Parts Field Recycled . | . . . . . . . . . Retrieved Matter . | . . . . . . . . . Parts Self-Destructed 6 | . . . . . . 4 2 . Prevented . | . . . . . . . . . Parts Restored . | . . . . . . . . . Kills | -11 -10 -9 -8 -8 -7 -7 -7 -6 ------- Run | Yrd Mat Mat Mat Sto Fac Low Low Fac Combat Hostiles Destroyed 114 | . 11 24 20 12 20 2 4 21 Melee 1 | . . 1 . . . . . . Guns 36 | . 11 . 4 12 9 . . . Cannons 51 | . . 18 9 . 5 . 2 17 AOE 24 | . . 4 6 . 6 2 2 4 Classes Destroyed 13 | 3 5 2 1 . 2 . . . Worker 19 | 1 . 3 5 2 7 . . 1 Builder 14 | . 2 . 3 1 6 . . 2 Tunneler 6 | 4 . . 1 . . . . 1 Hauler 12 | . 1 3 2 4 2 . . . Recycler 14 | 1 2 3 3 1 . . . 4 Operator 1 | . . . . . 1 . . . Watcher 6 | . 1 . 2 . 3 . . . Swarmer 20 | . 6 3 3 . 3 . 3 2 Grunt 54 | . 5 17 9 5 9 . . 9 Duelist 6 | . . 1 1 . 2 . . 2 Sentry 21 | . . 3 4 6 2 1 1 4 Hunter 9 | . . . 3 2 . 1 . 3 Programmer 5 | . . . . . 4 . . 1 Best Kill Streak 7 | 3 4 7 5 5 7 1 3 7 Combat Bots Only 6 | . 3 6 4 4 3 1 3 4 Max Kills in Single Turn 6 | 1 1 1 2 2 6 1 1 2 Gunslinging . | . . . . . . . . . Exploded 2 | . . 1 1 . 2 1 1 1 Melee 1 | . . 1 . . . . . . Uniques/NPCs Destroyed . | . . . . . . . . . Combat | -11 -10 -9 -8 -8 -7 -7 -7 -6 -------- Run | Yrd Mat Mat Mat Sto Fac Low Low Fac Hostile Shots Fired 1136 | . 59 101 98 95 234 20 26 503 Missed 319 | . 9 22 29 23 73 8 10 145 Hits 817 | . 50 79 69 72 161 12 16 358 Melee 36 | . . 5 3 . 18 . . 10 Projectile 781 | . 50 74 66 72 143 12 16 348 AOE 1 | . . . . . 1 . . . Critical Strikes 26 | . . 5 3 3 11 . . 4 Actively Blocked 1 | . . . . . 1 . . . Damage Taken 11484 | . 543 1250 1022 1104 2661 129 191 4584 Core 1970 | . 146 293 72 88 442 . 70 859 Absorbed by Shields 381 | . . . . . . . . 381 Redirected to Shielding 516 | . . . . . 280 3 . 233 Regen/Repaired (Parts) 195 | . . . . 195 . . . . Core Remaining (%) 52 | 100 41 26 . 70 . . 26 . Volleys Fired 507 | 20 55 62 73 79 113 3 6 96 Largest 2 | 2 2 2 2 2 2 2 2 2 Hottest 136 | 70 70 136 136 46 97 70 70 80 Shots Fired 935 | 40 110 118 140 150 180 7 12 178 Gun 523 | 40 110 6 59 150 145 . . 13 Cannon 359 | . . 104 66 . 25 3 6 155 Launcher 53 | . . 8 15 . 10 4 6 10 Special . | . . . . . . . . . Kinetic 575 | 20 55 3 51 150 119 3 6 168 Thermal 275 | 20 55 87 62 . 51 . . . Explosive 53 | . . 8 15 . 10 4 6 10 Electromagnetic 32 | . . 20 12 . . . . . Robot Hit Streak 24 | 12 7 12 17 24 12 5 12 13 Robot Miss Streak 8 | 1 3 3 4 3 7 . 2 8 Penetration Max . | . . . . . . . . . Secondary Targets 3 | . 1 . . 1 1 . . . Max Gunslinging Chain 1 | . 1 . . 1 1 . . . Shots Hit Robots 632 | 29 61 78 79 116 113 5 8 143 Core Hits 365 | 11 31 41 52 35 71 3 8 113 Critical Kills 2 | . . . 2 . . . . . Critical Parts Destroyed 2 | . 1 . . . . . . 1 Critical Strikes 23 | 4 3 . 3 . 6 . 1 6 Burn 9 | 4 2 . . . 3 . . . Meltdown 1 | . . . 1 . . . . . Destroy 2 | . 1 . 1 . . . . . Blast 9 | . . . . . 3 . 1 5 Corrupt 1 | . . . 1 . . . . . Smash 1 | . . . . . . . . 1 Melee Attacks 4 | . . . . . . . . 4 Impact 4 | . . . . . . . . 4 Slashing . | . . . . . . . . . Piercing . | . . . . . . . . . Sneak Attacks . | . . . . . . . . . Combat Hostiles . | . . . . . . . . . Follow-up Attacks . | . . . . . . . . . Damage Inflicted 15551 | 275 672 2073 3037 1721 3491 149 316 3817 Guns 5055 | 275 657 24 552 1705 1613 . . 229 Cannons 6455 | . . 1518 835 . 787 62 128 3125 Explosions 3860 | . . 531 1589 . 1059 87 188 406 Melee 53 | . . . . . . . . 53 Ramming 128 | . 15 . 61 16 32 . . 4 Kinetic 7774 | 87 253 . 470 1705 1715 62 128 3354 Thermal 3387 | 188 404 1260 841 . 694 . . . Explosive 3611 | . . 445 1488 . 997 87 188 406 Electromagnetic 598 | . . 368 177 . 53 . . . Impact 53 | . . . . . . . . 53 Slashing . | . . . . . . . . . Piercing . | . . . . . . . . . Highest Corruption 6 | . 1 . 5 6 4 4 4 2 Average Corruption 3 | . 1 . 4 5 3 4 4 1 Corruption Purged . | . . . . . . . . . Corruption Blocked . | . . . . . . . . . Effects 131 | . 3 . 33 42 36 12 5 . Message Errors 40 | . . . 8 15 10 4 3 . Matter Fused 27 | . 2 . 9 7 7 2 . . Heat Flow Errors 17 | . 1 . 5 6 4 1 . . Energy Discharges 14 | . . . 2 2 6 2 2 . Parts Fused 1 | . . . 1 . . . . . Data Loss (minor) 18 | . . . 5 7 6 . . . Data Loss (major) 6 | . . . 2 . 2 2 . . Misfires 4 | . . . 1 1 1 1 . . Weapon Failures 4 | . . . . 4 . . . . Overload Shots . | . . . . . . . . . Overflow Damage 355 | . . 14 195 . 78 . . 68 Projectiles 84 | . . 2 17 . 51 . . 14 Explosions 218 | . . 12 178 . 27 . . 1 Melee 53 | . . . . . . . . 53 Knockbacks 42 | . . . . . 2 . . 40 Impact 1 | . . . . . 1 . . . Kinetic 38 | . . . . . 1 . . 37 Secondary 3 | . . . . . . . . 3 Self-Inflicted Damage 428 | . 40 181 . . 103 30 3 71 Shots 16 | . 1 6 . . 4 1 1 3 Rammed 13 | . 2 . 4 2 3 . . 2 Targets Rammed 16 | . 2 1 5 3 3 . . 2 Kicked . | . . . . . . . . . Crushed 3 | . . 1 1 1 . . . . Highest Temperature 442 | 70 258 204 442 377 216 133 1 27 Average Temperature 85 | 26 73 60 136 109 69 73 1 10 Received Heat Transfer 3067 | . 153 399 396 387 693 18 36 985 Effects 7 | . 2 . 5 . . . . . Energy Bleed 1 | . . . 1 . . . . . Interference 6 | . 2 . 4 . . . . . Siege Activations . | . . . . . . . . . Martial Activations . | . . . . . . . . . Shielding Activations . | . . . . . . . . . Robots Disrupted 1 | . . . . . 1 . . . Combat Hostiles 1 | . . . . . 1 . . . Robots Corrupted . | . . . . . . . . . Combat Hostiles . | . . . . . . . . . Parts Fried . | . . . . . . . . . Impact Corruptions 2 | . . . . . . . . 2 Robots Melted 2 | . . 1 1 . . . . . Combat Hostiles 2 | . . 1 1 . . . . . Parts Melted 13 | 1 1 4 4 . 3 . . . Heat Transferred 7441 | 851 1332 2346 1382 . 1530 . . . Parts Sabotaged . | . . . . . . . . . Parts Stolen . | . . . . . . . . . Parts Stripped . | . . . . . . . . . Power Chain Reactions 3 | . . 2 . . 1 . . . Alert | -11 -10 -9 -8 -8 -7 -7 -7 -6 ------- Run | Yrd Mat Mat Mat Sto Fac Low Low Fac Maximum Alert Level 1 | . . 1 1 . 1 . . . Low Security (%) 91 | 100 100 84 87 100 84 . . 100 Level 1 8 | . . 15 12 . 15 . . . Level 2 . | . . . . . . . . . Level 3 . | . . . . . . . . . Level 4 . | . . . . . . . . . Level 5 . | . . . . . . . . . High Security . | . . . . . . . . . Max Security . | . . . . . . . . . Peak Influence 326 | 10 112 273 255 129 326 . . 148 Initial 102 | . . 14 102 91 45 . . . Average 76 | 1 53 102 97 32 92 . . 61 Influence Increases 3998 | 30 334 760 766 431 819 50 90 718 Destroy 0b10 Robot/C 2280 | . 220 480 400 240 400 40 80 420 Destroy 0b10 Robot/NC 360 | 30 30 45 80 40 95 . . 40 Destroy Leader 636 | . 54 116 108 118 110 10 10 110 Successful Hack 19 | . . . 2 17 . . . . Disable Machine 270 | . 30 75 45 . 75 . . 45 Destroy Structure 253 | . . 29 116 1 64 . . 43 Lose Combat Pursuer 180 | . . 15 15 15 75 . . 60 Influence Decreases 3976 | 30 298 553 791 548 598 372 90 696 Entered New Map 466 | . . 22 141 127 56 120 . . Time Decay 2730 | 30 278 457 560 303 422 232 80 368 Lost Part 692 | . 20 74 90 30 120 20 10 328 Purge Threat 88 | . . . . 88 . . . . Squads Dispatched 30 | . 2 4 2 6 8 . . 8 Investigation 5 | . 1 2 . 2 . . . . Extermination 6 | . . . . . 4 . . 2 Reinforcement 13 | . 1 2 2 1 4 . . 3 Assault . | . . . . . . . . . Garrison 6 | . . . . 3 . . . 3 Intercept . | . . . . . . . . . Searches Triggered . | . . . . . . . . . Construction Impeded 5 | . . . 1 . 2 . . 2 Haulers Reinforced . | . . . . . . . . . Active Scanning Responses . | . . . . . . . . . Cargo Convoy Interrupts . | . . . . . . . . . Stealth | -11 -10 -9 -8 -8 -7 -7 -7 -6 --------- Run | Yrd Mat Mat Mat Sto Fac Low Low Fac Distress Signals 17 | . 2 2 6 1 2 . . 4 Communications Jammed . | . . . . . . . . . Distress Signals . | . . . . . . . . . Times Spotted 178 | . 15 29 37 24 40 2 4 27 Peak Tracking Total 6 | . 4 6 5 3 5 1 3 6 Tactical Retreats 7 | . . 1 1 1 2 . . 2 Traps | -11 -10 -9 -8 -8 -7 -7 -7 -6 ------- Run | Yrd Mat Mat Mat Sto Fac Low Low Fac Traps Triggered 6 | . 1 1 1 1 2 . . . Indirectly . | . . . . . . . . . Trap Hack Attempts . | . . . . . . . . . Triggered . | . . . . . . . . . Disarmed . | . . . . . . . . . Reprogrammed . | . . . . . . . . . Reused . | . . . . . . . . . Traps Extracted . | . . . . . . . . . Installed . | . . . . . . . . . Triggered . | . . . . . . . . . Machines | -11 -10 -9 -8 -8 -7 -7 -7 -6 ---------- Run | Yrd Mat Mat Mat Sto Fac Low Low Fac Machines Disabled 18 | . 2 5 3 . 5 . . 3 Max in Single Turn 2 | . 2 1 2 . 1 . . 1 Machines Repaired . | . . . . . . . . . Machines Dismantled . | . . . . . . . . . Machines Sabotaged . | . . . . . . . . . Overloaded Fab Kills . | . . . . . . . . . Hacking | -11 -10 -9 -8 -8 -7 -7 -7 -6 --------- Run | Yrd Mat Mat Mat Sto Fac Low Low Fac Machines Accessed 18 | . 2 3 3 6 2 . . 2 Terminals 12 | . 1 3 2 4 1 . . 1 Fabricators . | . . . . . . . . . Repair Stations 2 | . . . . 2 . . . . Recycling Units 1 | . 1 . . . . . . . Scanalyzers 3 | . . . 1 . 1 . . 1 Garrison Access . | . . . . . . . . . Total Hacks 40 | . 3 9 6 13 3 . . 6 Successful 16 | . 2 1 2 5 1 . . 5 Failed 23 | . 1 8 4 8 1 . . 1 Catastrophic 6 | . . . 2 4 . . . . Database Lockouts 1 | . . . . . 1 . . . Manual 4 | . . . 2 2 . . . . Terminals 25 | . 2 9 4 7 1 . . 2 Fabricators . | . . . . . . . . . Repair Stations 6 | . . . . 6 . . . . Recycling Units 1 | . 1 . . . . . . . Scanalyzers 8 | . . . 2 . 2 . . 4 Garrison Access . | . . . . . . . . . Terminal Hacks 4 | . 1 1 . 1 . . . 1 Open DSF 1 | . . . . . . . . 1 Unreport Threat 1 | . . . . 1 . . . . Zone Layout 2 | . 1 1 . . . . . . Fabricator Hacks . | . . . . . . . . . Repair Station Hacks 4 | . . . . 4 . . . . Scan Component 2 | . . . . 2 . . . . Repair 2 | . . . . 2 . . . . Recycling Unit Hacks 1 | . 1 . . . . . . . Retrieve Components 1 | . 1 . . . . . . . Scanalyzer 7 | . . . 2 . 1 . . 4 Insert Component 1 | . . . . . . . . 1 Analyze 1 | . . . . . . . . 1 Retrieve Study 5 | . . . 2 . 1 . . 2 Garrison Access Hacks . | . . . . . . . . . Unauthorized Hacks . | . . . . . . . . . Terminals . | . . . . . . . . . Fabricators . | . . . . . . . . . Repair Stations . | . . . . . . . . . Recycling Units . | . . . . . . . . . Scanalyzers . | . . . . . . . . . Garrison Access . | . . . . . . . . . Data Cores Recovered 1 | . . . . . 1 . . . Used . | . . . . . . . . . Hacking Detections 14 | . 1 3 2 5 2 . . 1 Full Trace Events 6 | . . 3 . 3 . . . . Feedback Events . | . . . . . . . . . Feedback Blocked . | . . . . . . . . . Robot Schematics Acquired . | . . . . . . . . . Robots Built . | . . . . . . . . . Authchips . | . . . . . . . . . Time . | . . . . . . . . . Total Robot Build Rating . | . . . . . . . . . Part Schematics Acquired 1 | . . . . . . . . 1 Parts Built . | . . . . . . . . . Authchips . | . . . . . . . . . Time . | . . . . . . . . . Total Part Build Rating . | . . . . . . . . . Part Studies Acquired 5 | . . . 2 . 1 . . 2 Parts Repaired 2 | . . . . 2 . . . . Time 39 | . . . . 39 . . . . Parts Recycled . | . . . . . . . . . Recycled Matter . | . . . . . . . . . Retrieved Matter . | . . . . . . . . . Retrieved Components 1 | . 1 . . . . . . . Parts Scanalyzed 1 | . . . . . . . . 1 Part Schematics Acquired 1 | . . . . . . . . 1 Parts Damaged . | . . . . . . . . . Bothacking | -11 -10 -9 -8 -8 -7 -7 -7 -6 ------------ Run | Yrd Mat Mat Mat Sto Fac Low Low Fac Used RIF Installer . | . . . . . . . . . Robots Hacked . | . . . . . . . . . Non-combat . | . . . . . . . . . Combat . | . . . . . . . . . Robot Hacks Applied . | . . . . . . . . . Relay Couplers Released . | . . . . . . . . . Fabnet Peak Effective % . | . . . . . . . . . Robots Rewired . | . . . . . . . . . Allies Hacked . | . . . . . . . . . Hacks Repelled . | . . . . . . . . . Allies | -11 -10 -9 -8 -8 -7 -7 -7 -6 -------- Run | Yrd Mat Mat Mat Sto Fac Low Low Fac Total Allies . | . . . . . . . . . Largest Group . | . . . . . . . . . Highest-Rated Group . | . . . . . . . . . Highest-Rated Ally . | . . . . . . . . . Total Orders . | . . . . . . . . . Ally Attacks . | . . . . . . . . . Total Damage . | . . . . . . . . . Kills . | . . . . . . . . . Allies Corrupted . | . . . . . . . . . Allies Melted . | . . . . . . . . . Intel | -11 -10 -9 -8 -8 -7 -7 -7 -6 ------- Run | Yrd Mat Mat Mat Sto Fac Low Low Fac Active Infowar (turns) 3577 | 7 483 . 1937 1150 . . . . Seismic 3577 | 7 483 . 1937 1150 . . . . Robot Analysis Total . | . . . . . . . . . Derelict Logs Recovered 1 | . . . . . . 1 . . Drone Launches . | . . . . . . . . . Drone Recoveries . | . . . . . . . . . Exploration | -11 -10 -9 -8 -8 -7 -7 -7 -6 ------------- Run | Yrd Mat Mat Mat Sto Fac Low Low Fac Turns Passed 9891 | 208 737 1307 1994 1400 2172 503 291 1279 Spaces Moved 3958 | 101 272 359 749 577 927 428 217 328 Core 71 | 31 4 . . . 5 . . 31 Treads 1768 | 70 48 309 746 577 10 . . 8 Legs . | . . . . . . . . . Wheels 1378 | . 220 50 . . 217 428 217 246 Hover 741 | . . . 3 . 695 . . 43 Flight . | . . . . . . . . . Fastest Speed 50 | 50 135 200 160 160 90 95 110 125 Average Speed 189 | 139 206 265 202 172 179 113 122 283 Slowest Speed 1850 | 200 1450 480 436 200 1750 140 125 1850 Overloaded Moves 223 | . . . . . 223 . . . Propulsion Burnouts 1 | . . . . . 1 . . . Robots Hopped . | . . . . . . . . . Potential Cave-ins . | . . . . . . . . . Cave-ins Triggered . | . . . . . . . . . Exploration Rate (%) 38 | 4 44 39 53 68 30 66 33 9 Regions Visited 8 Branch Regions 3 Pre-discovered Areas . | . . . . . . . . . Known Exits Taken . | . . . . . . . . . Unknown Exits Taken 8 | 1 1 1 1 1 1 1 1 . Scrap Searched 3 | . . . . . . 3 . . Spaces Dug . | . . . . . . . . . Terrain Destroyed 305 | . . 25 131 . 61 16 29 43 Melee . | . . . . . . . . . Projectile 26 | . . . . . 16 . 1 9 AOE 279 | . . 25 131 . 45 16 28 34 Terrain Rammed . | . . . . . . . . . Walls Destroyed . | . . . . . . . . . Machines Disabled . | . . . . . . . . . Actions | -11 -10 -9 -8 -8 -7 -7 -7 -6 --------- Run | Yrd Mat Mat Mat Sto Fac Low Low Fac Total 5365 | 129 346 588 1080 827 1241 439 230 485 Wait 571 | . 9 138 196 110 102 . 8 8 Move 3950 | 100 271 358 748 576 926 427 216 328 Hop . | . . . . . . . . . Pick Up 86 | 2 3 9 25 22 16 1 . 8 Fast Attach 62 | 7 3 7 8 11 22 . . 4 Attach 71 | . . 7 7 2 23 5 . 27 Detach 9 | . . . . . 7 2 . . Swap 27 | . 1 4 6 10 2 1 . 3 Drop 49 | . 2 2 12 14 14 . . 5 Fire 507 | 20 55 62 73 79 113 3 6 96 Melee 4 | . . . . . . . . 4 Ram 6 | . 1 . . . 3 . . 2 Kick . | . . . . . . . . . Crush 10 | . 1 1 5 3 . . . . Escape Stasis 13 | . . . . . 13 . . . Rewire . | . . . . . . . . . Trap . | . . . . . . . . . Miscellaneous . | . . . . . . . . . Route ------- -11/Scrapyard -10/Materials (discovered 2 exits: *Mat / [*Sub]) -9/Materials (discovered 2 exits: *Mat / [*Min]) -8/Materials (discovered 2 exits: *Fac / *Sto) -8/Storage -7/Factory (discovered 3 exits: *Fac / [*Low x2]) -7/Lower Caves -7/Lower Caves -6/Factory History --------- Turn | Location | Event 5 | -11/Scrapyard | Discovered new exit (range 15) 209 | -11/Scrapyard | Entered Materials 303 | -10/Materials | Build established: Mutant 513 | -10/Materials | Discovered new exit (range 4) 757 | -10/Materials | Core integrity fell below 50% 790 | -10/Materials | Discovered new exit (range 8) 946 | -10/Materials | Entered another Materials area 946 | -9/Materials | Evolved 2 slots: Propulsion x2 1030 | -9/Materials | Lost 6 parts (1p1n4w) 1173 | -9/Materials | Discovered new exit (range 15) 1400 | -9/Materials | Core integrity fell below 50% 1602 | -9/Materials | Discovered new exit (range 5) 1883 | -9/Materials | Build established: Scavenger-Mutant 2253 | -9/Materials | Entered another Materials area 2253 | -8/Materials | Evolved 2 slots: Propulsion x1, Utility x1 2616 | -8/Materials | Lost 4 parts (3n1u) 2913 | -8/Materials | Build established: Mutant 2921 | -8/Materials | Lost 4 parts (1p1n2w) 3236 | -8/Materials | Build established: Scavenger-Mutant 3244 | -8/Materials | Discovered new exit (range 12) 3401 | -8/Materials | Discovered new exit (range 3) 3743 | -8/Materials | Build established: Mutant 4247 | -8/Materials | Entered Storage 4283 | -8/Storage | Met 01-MTF 4534 | -8/Storage | Build established: Scavenger-Mutant 4586 | -8/Storage | Repaired Huge Storage Unit 5084 | -8/Storage | Garrison activated, responded to threat 5320 | -8/Storage | Repaired Assault Rifle 5561 | -8/Storage | Discovered new exit (range 16) 5647 | -8/Storage | Entered Factory 5647 | -7/Factory | Evolved 2 slots: Utility x2 5919 | -7/Factory | Discovered new exit (range 8) 5940 | -7/Factory | Central database locked down 5986 | -7/Factory | Build established: Mutant 6055 | -7/Factory | Discovered new exit (range 15) 6188 | -7/Factory | Lost 5 parts (3n1u1w) 6678 | -7/Factory | Lost 5 parts (1p2n1u1w) 6849 | -7/Factory | Lost 5 parts (2n1u2w) 6975 | -7/Factory | Lost 3 parts (1p1n1u) 7046 | -7/Factory | Core integrity fell below 50% 7542 | -7/Factory | Discovered new exit (range 13) 7819 | -7/Factory | Entered Lower Caves 7977 | -7/Lower Caves | Attracted the attention of an 0b10 checkpoint 8225 | -7/Lower Caves | Build established: Scavenger-Mutant 8249 | -7/Lower Caves | Discovered new exit (range 15) 8259 | -7/Lower Caves | Learned Factory garrison access intel 8322 | -7/Lower Caves | Entered another Lower Caves area 8324 | -7/Lower Caves | Attracted the attention of an 0b10 checkpoint 8358 | -7/Lower Caves | Discovered new exit (range 10) 8613 | -7/Lower Caves | Entered Factory 8613 | -6/Factory | Evolved 2 slots: Power x1, Utility x1 8614 | -6/Factory | Loaded intel: 4 garrison access locations 8647 | -6/Factory | Identified exit to DSF 8692 | -6/Factory | Build established: Mutant 8920 | -6/Factory | Lost 6 parts (1p4n1u) 9062 | -6/Factory | Lost 5 parts (2n2u1w) 9255 | -6/Factory | Garrison activated, responded to threat 9297 | -6/Factory | Core integrity fell below 50% 9319 | -6/Factory | Lost 11 parts (1p2n6u2w) 9397 | -6/Factory | Lost 5 parts (1p2u2w) 9467 | -6/Factory | Core integrity fell below 20% 9892 | -6/Factory | Destroyed by P-60 Hacker with Shock Rifle Last Messages --------------- 09509_ U-05 Engineer lays Concrete. 09512_ U-05 Engineer builds a Wall. 09513_ K-01 Serf collects debris. 09526_ U-05 Engineer lays Concrete. 09551_ R-10 Processor collects Carbon-fiber Leg. 09559_ R-10 Processor collects Lgt. Ion Engine. 09563_ R-10 Processor collects Gatling Laser. 09566_ R-10 Processor collects Structural Scanner. 09570_ R-10 Processor collects Wheel. 09624_ ALERT: Security rotation in progress. 09665_ ALERT: Cargo convoy en route, clear transfer corridor. 09767_ ALERT: Potential suspicious activity detected, Programmers report to Factory Zone 7U. 09775_ K-01 Serf cleans the Nuclear Reactor. 09877_ Hvy. Assault Cannon destroyed. 09880_ Carbon-fiber Leg destroyed. 09885_ P-60 Hacker suffers critical hit (Smash). 09885_ Destroyed Remote Datajack. 09885_ Destroyed Gravmag System. 09885_ P-60 Hacker system corrupted by crushing effect. Map ----- +----------------------------------------------------+ | ##???????????????????????????????????????????????? | | #???????????????????????????????????????????????? | | #######????###########??????????????????????????? | | # #????# [#??????????????????????????? | | # #????# #??????????????????????????? | | # #????# """ #??????????????????????????? | | # #????# """ #??????????????????????????? | | + ##???# "S """ #??????????????????????????? | | # T#???# """ "" #??????????????????????????? | | # >#???# "" "" #??????????????????????????? | | # ##???# #??????????????????????????? | | # ##########+#####??????????????????????????? | | # #???????????????????????????? | | # #???????????????????????????? | | ## #???????????????????????????? | | ?# #???????????????????????????? | | ?# #???????????????????????###?# | | ?#########+##### #????????????????????#?? ! | | ?????# # ##########+########### ? [ | | ?????# """" # + " | | ?????# """" # # "" | | ?????# """" ! + # G | | ?????# """" # """ """ """ """ """ # "" | | ?????# """" # """ """ """ """ """ # " % | | ?????# """" #### """ """ """ """ """ # =% | | ?????#? #??# @ ###+#### | | ???????#########??#!== p""" """ """ """ *%%%% | | ??????????????????#=== """ """ """ """ ! | | ??????????????????#=== """ """ """ """ | | ??????????????????# | | ??????????????????# % |%[ % | | ??????????????????#^ ^ A#################+#### | | ??????????????????# # # # = ] | | ??????????????????#* !^^/ # """ """ #### | | ??????????????????# !/ + """ """ #??# ""% | | ??????????????????# / # """ """ #??# "" | | ??????????????????# # #??# """ | | ??????????????????# # """ """ #??# """ | | ??????????????????# ##### # """ """ #??# """ | | ??????????????????# #???# # """ """ #??# | | ??????????????????# #???# # #??###### | | ??????????????????# #???# # ####### | | ??????????????????# #???# # + | | ??????????????????# #???? # ! ####### | | ??????????????????# #???? ##############?????### | | ??????????????????# #????+#???????????????????## | | ??????????????????# #?????????????????????????# | | ??????????????????# #?????????????????????????# | | ??????????????????# #?????????????????????????# | | ??????????????????# #?????????????????????????# | +----------------------------------------------------+ Best States ------------- Heat Dissipation 51 Energy Generation 19 Energy Capacity 980 Matter Stores 497 Matter Capacity 500 Sight Range 16 Terrain Scan Density 10 Armor Coverage 375 Core Shielding 20 Power Shielding 66 Utility Shielding 66 Weapon Shielding 33 Evasion (%) 50 Recoil Reduction 5 Item Schematics ----------------- Gravmag System | -6/Factory | Scanalyzed Robot Schematics ------------------ None Fabricated ------------ Nothing Repaired ---------- Huge Storage Unit | 75% | -8/Storage Assault Rifle | 53% | -8/Storage Studied --------- Lgt. Treads | -8/Materials | Hacked Mni. Grenade Launcher | -8/Materials | Hacked Gravmag System | -7/Factory | Hacked Arm. Treads | -6/Factory | Hacked Med. Treads | -6/Factory | Hacked Alien Tech Used ----------------- None Achievements -------------- None Challenges ------------ None Game ------ Seed RelayRapidMachine Manual? 0 Play Time 00:51:27 Cumulative 64.1 hours Start 2026.06.30 @ 17:06:32 End 2026.06.30 @ 17:56:41 Sessions 1 Manual Loads 0 Difficulty Rogue Special Mode None Game No. 135 Rogue 135 Adventurer 0 Explorer 0 Win Type - Total 0 Types 0/0/0/0/0/0/0/0/0/0 Lore% 30 Gallery% 29 Achievement% 25 Wizard Run 0 Options --------- Layout 0 ASCII 0 Keyboard 0 Movement Mouse Keybinds 0 Fullscreen 2 Font 24/Smallcaps Map View 76x50 Zoom Use 0% Tactical HUD 1 Map Filters NONE Filters NONE Steam 1 RUN: 67023a81-9c06-4b7a-a678-b5c038f735cc